bitfinex/quotes_ETHUSD_20240703
["timestamp","ask_amount","ask_price","bid_price","bid_amount"]
[1719973397948,6.29,3391.6,3390.8,2.3593]
[1719973397949,5.543,3391.6,3390.8,2.3593]
[1719973398133,0.51069694,3391.5,3391.1,2.35911]
[1719973398339,7.48,3391.8,3391.1,2.35911]
[1719973398576,0.51066131,3391.7,3391.1,2.35911]
[1719973398775,0.51066131,3391.6,3391.1,2.35911]
[1719973398995,0.747,3391.7,3391.1,2.35911]
[1719973399266,0.51068557,3391.6,3391.1,2.35911]
[1719973399468,2.36174,3391.7,3391.1,2.35911]
[1719973399674,0.51067478,3391.6,3391.1,2.35911]
[1719973399893,2.36174,3391.7,3391.1,2.35911]
[1719973400078,0.51067542,3391.6,3391.1,2.35911]
[1719973400239,1.61474,3391.7,3391.1,2.35911]
[1719973400439,0.51068042,3391.6,3391.1,2.35911]
[1719973400667,1.61474,3391.7,3391.1,2.35911]
[1719973400873,0.51067448,3391.6,3391.1,2.35911]
[1719973401052,1.61474,3391.7,3391.1,2.35911]
[1719973401251,0.51067442,3391.6,3391.2,2.35903]
[1719973401447,7.48,3391.8,3391.4,2.3589]
[1719973401674,0.51066458,3391.7,3391.4,2.3589]
[1719973401845,0.747,3392.1,3391.4,2.3589]
[1719973402040,3.22657932,3392.0,3391.4,2.3589]
[1719973402245,0.51064708,3391.9,3391.4,3.1059]
[1719973402440,25.0679,3392.2,3391.4,3.1059]
[1719973402441,19.65,3392.2,3391.4,3.1059]
[1719973402673,0.51061009,3392.1,3391.4,3.1059]
[1719973402878,19.65,3392.2,3391.6,2.35872]
[1719973402879,0.51061009,3392.0,3391.6,2.35872]
[1719973403046,2.01606101,3392.0,3391.6,2.35872]
[1719973403247,19.65,3392.2,3391.6,2.35872]
[1719973403443,0.51060695,3392.1,3391.6,2.35872]
[1719973403675,0.51060692,3392.0,3391.6,2.35872]
[1719973404177,0.51060863,3391.9,3391.7,2.35869]
[1719973404381,19.65,3392.2,3391.7,2.35869]
[1719973404579,2.4755948,3392.1,3391.7,2.35869]
[1719973404877,0.5105948,3392.0,3391.7,2.35869]
[1719973405947,0.5105948,3392.1,3391.7,2.35869]
[1719973406179,0.5105948,3392.0,3391.7,2.35869]
[1719973406384,0.5105948,3391.9,3391.7,2.35869]
[1719973406572,0.5105948,3392.1,3391.7,2.35869]
[1719973406749,8.85952,3392.2,3391.7,2.35869]
[1719973406945,0.51060547,3392.0,3391.7,2.35869]
[1719973407184,8.85952,3392.2,3391.7,2.35869]
[1719973407346,1.47124726,3392.1,3391.7,2.35869]
[1719973407547,0.51059526,3392.0,3391.7,2.35869]
[1719973407789,0.960652,3392.1,3391.7,2.35869]
[1719973407955,0.51060819,3392.0,3391.7,2.35869]
[1719973408152,0.960652,3392.1,3391.7,2.35869]
[1719973408342,0.5105984,3392.0,3391.7,2.35869]
[1719973408569,0.960652,3392.1,3391.5,2.35879]
[1719973408787,0.960652,3392.1,3391.4,2.3589]
[1719973408788,1.61839595,3392.0,3391.6,2.35876]
[1719973409095,0.51061891,3391.9,3391.6,2.35876]
[1719973409301,1.10777704,3392.0,3391.6,2.35876]
[1719973409580,1.0714297,3391.9,3391.6,2.35876]
[1719973409782,6.8687297,3391.9,3391.6,2.35876]
[1719973409970,6.8687297,3391.9,3391.4,2.3589]
[1719973410586,0.51064612,3391.8,3391.4,2.3589]
[1719973410776,6.8687297,3391.9,3391.4,2.3589]
[1719973410974,0.76157297,3391.8,3391.4,2.3589]
[1719973411288,1.0714297,3391.9,3391.4,2.3589]
[1719973411747,12.7541,3392.2,3391.4,2.3589]
[1719973411952,0.51062729,3392.1,3391.4,2.3589]
[1719973412265,0.51062729,3392.0,3391.5,2.35878]
[1719973412468,12.7541,3392.2,3391.6,2.3587]
[1719973412659,0.51060264,3392.1,3391.6,2.3587]
[1719973412991,12.7541,3392.2,3391.6,2.3587]
[1719973413158,0.51060012,3392.1,3391.6,2.3587]
[1719973413357,0.51060893,3392.0,3391.7,2.35868]
[1719973413561,14.10421,3392.2,3391.7,2.35868]
[1719973413864,0.51059769,3392.1,3391.7,2.35868]
[1719973414186,0.51059769,3392.0,3391.7,2.35868]
[1719973414421,8.83011,3392.2,3391.7,2.35868]
[1719973414724,0.51059583,3392.1,3391.7,2.35868]
[1719973415016,8.83011,3392.2,3391.7,2.35868]
[1719973415222,0.51059597,3392.1,3391.7,2.35868]
[1719973415381,8.83011,3392.2,3391.7,2.35868]
[1719973415583,0.51059605,3392.1,3391.7,2.35868]
[1719973415920,8.83011,3392.2,3391.7,2.35868]
[1719973416903,0.51058736,3392.1,3391.7,2.35868]
[1719973417125,8.83011,3392.2,3391.7,2.35868]
[1719973417298,0.51059536,3392.1,3391.8,2.35862]
[1719973417497,1.35011,3392.2,3391.8,2.35862]
[1719973417701,6.1742,3392.4,3391.8,2.35862]
[1719973417900,0.51058381,3392.3,3391.8,2.35862]
[1719973418136,0.51058381,3392.2,3391.8,2.35862]
[1719973418288,0.51058381,3392.3,3391.8,2.35862]
[1719973419109,0.51058381,3392.3,3391.9,2.35851]
[1719973419309,7.48,3392.6,3391.8,2.35862]
[1719973419310,0.51057893,3392.2,3391.8,2.35862]
[1719973419622,5.265,3392.5,3392.0,2.35843]
[1719973419827,0.51057736,3392.4,3392.0,2.35843]
[1719973420026,0.51057736,3392.3,3392.0,2.35843]
[1719973420328,0.51057736,3392.2,3392.0,2.35843]
[1719973420648,5.265,3392.5,3392.0,2.35843]
[1719973420787,1.92528142,3392.4,3392.0,2.35843]
[1719973421127,0.51057734,3392.3,3392.0,2.35843]
[1719973421283,0.51057734,3392.2,3392.0,2.35843]
[1719973421484,0.51057734,3392.3,3392.0,2.35843]
[1719973421686,1.41470408,3392.4,3392.0,2.35843]
[1719973421935,0.51057867,3392.3,3392.0,2.35843]
[1719973422126,1.41470408,3392.4,3392.0,2.35843]
[1719973422345,0.51057739,3392.3,3392.0,2.35843]
[1719973422547,1.54172815,3392.3,3391.8,2.35862]
[1719973422751,0.51058341,3392.2,3391.9,2.35855]
[1719973422905,1.54172815,3392.3,3391.9,2.35855]
[1719973423107,2.28872815,3392.3,3391.9,2.35855]
[1719973423449,6.9119284,3392.2,3391.7,2.35869]
[1719973423611,1.25758518,3392.1,3391.7,2.35869]
[1719973423812,0.747,3392.1,3391.7,2.35869]
[1719973425443,0.747,3392.1,3391.5,2.35882]
[1719973425671,0.747,3392.1,3391.6,2.35876]
[1719973425822,0.86900714,3392.0,3391.6,2.35876]
[1719973428139,6.40134322,3392.2,3391.6,2.35876]
[1719973428364,0.51059996,3392.1,3391.6,2.35876]
[1719973428523,6.40134322,3392.2,3391.6,2.35876]
[1719973428729,0.51059985,3392.1,3391.6,2.35876]
[1719973428926,6.40134322,3392.2,3391.6,2.35876]
[1719973429157,1.37960704,3392.1,3391.6,2.35876]
[1719973429324,0.5105999,3392.0,3391.6,2.35876]
[1719973429524,0.86900714,3392.1,3391.6,2.35876]
[1719973429765,0.51059977,3392.0,3391.6,2.35876]
[1719973430065,0.86900714,3392.1,3391.6,2.35876]
[1719973430264,1.46650835,3392.0,3391.6,2.35876]
[1719973430564,0.95590785,3392.0,3391.4,2.3589]
[1719973430863,0.95590785,3392.0,3391.6,2.35876]
[1719973431240,0.51060052,3391.9,3391.6,2.35876]
[1719973431441,6.40134322,3392.2,3391.6,2.35876]
[1719973431650,0.51059877,3392.1,3391.6,2.35876]
[1719973431850,6.40134322,3392.2,3391.6,2.35876]
[1719973432062,0.51059872,3392.0,3391.6,2.35876]
[1719973432239,0.51059761,3391.9,3391.6,2.35876]
[1719973432440,6.44463432,3392.2,3391.6,2.35876]
[1719973432620,0.51059713,3392.1,3391.6,2.35876]
[1719973432960,0.51059713,3392.0,3391.6,2.35876]
[1719973433152,0.51059713,3392.1,3391.6,2.35876]
[1719973433391,1.20612027,3392.0,3391.6,2.35876]
[1719973433589,0.51059713,3391.9,3391.6,2.35876]
[1719973433968,0.51059713,3391.9,3391.8,3.10562]
[1719973434279,5.7172,3392.5,3391.8,2.35862]
[1719973434582,0.51057291,3392.4,3391.8,2.35862]
[1719973434917,0.51057291,3392.3,3391.8,2.35862]
[1719973435063,0.51056717,3392.3,3391.8,2.35862]
[1719973435401,0.51056717,3392.2,3391.8,2.35862]
[1719973435604,0.5105663,3392.1,3391.8,2.35862]
[1719973435897,6.4642,3392.5,3391.8,2.35862]
[1719973436197,0.51056734,3392.4,3391.8,2.35862]
[1719973436510,0.51056734,3392.3,3391.8,2.35862]
[1719973436671,0.51056734,3392.5,3392.1,2.35842]
[1719973437026,0.51056734,3392.4,3392.1,2.35842]
[1719973437211,0.51056734,3392.3,3392.1,2.35842]
[1719973437505,17.966,3392.8,3392.1,2.35842]
[1719973437702,0.51053729,3392.5,3392.1,2.35842]
[1719973437879,0.51053729,3392.4,3392.1,2.35842]
[1719973438208,0.51053694,3392.3,3392.1,2.35842]
[1719973438413,0.747,3392.7,3392.1,2.35842]
[1719973438613,0.51053451,3392.5,3392.1,2.35842]
[1719973438813,0.51053451,3392.4,3392.1,2.35842]
[1719973438975,0.51053451,3392.5,3392.1,2.35842]
[1719973439524,0.51053451,3392.5,3391.9,2.35852]
[1719973439814,0.51053451,3392.5,3391.8,2.35862]
[1719973440574,0.51053451,3392.5,3392.0,2.35843]
[1719973440782,0.51054566,3392.4,3392.0,2.35843]
[1719973440980,0.747,3392.7,3392.0,2.35843]
[1719973440981,0.51054566,3392.3,3392.0,2.35843]
[1719973441181,0.747,3392.7,3392.0,2.35843]
[1719973441430,5.5271,3392.4,3391.5,2.35877]
[1719973441625,0.747,3392.1,3391.3,2.35893]
[1719973441927,0.92712753,3392.0,3391.4,2.35886]
[1719973442097,0.51054503,3391.9,3391.4,2.35886]
[1719973442282,0.51054503,3392.0,3391.4,2.35886]
[1719973443709,0.510636,3391.9,3391.4,2.35886]
[1719973443933,0.510636,3391.8,3391.4,2.35886]
[1719973444138,0.747,3392.1,3391.4,2.35886]
[1719973444302,0.51063905,3392.0,3391.4,2.35886]
[1719973444505,0.51063905,3391.9,3391.4,2.35886]
[1719973444724,0.51063905,3392.0,3391.4,2.35886]
[1719973446741,0.51063905,3392.0,3391.2,8.15378]
[1719973446742,1.665238,3392.1,3391.2,8.15378]
[1719973446892,2.35835,3392.2,3391.2,8.15378]
[1719973446893,0.747,3391.9,3391.2,8.15378]
[1719973447103,0.5106446,3391.8,3391.2,8.15378]
[1719973447300,0.747,3391.9,3391.2,8.15378]
[1719973447301,0.51064737,3391.7,3391.2,8.15378]
[1719973447552,0.747,3391.9,3391.2,8.15378]
[1719973447709,1.17487543,3391.8,3391.1,2.3591]
[1719973448035,0.51064955,3391.7,3391.1,2.3591]
[1719973448376,0.66422588,3391.8,3391.1,2.3591]
[1719973448500,0.51065187,3391.7,3391.1,2.3591]
[1719973448835,0.66422588,3391.8,3391.1,2.3591]
[1719973449012,0.51065237,3391.7,3391.1,2.3591]
[1719973449211,0.66422588,3391.8,3391.1,2.3591]
[1719973449536,0.51065332,3391.7,3391.1,2.3591]
[1719973449846,0.66422588,3391.8,3391.1,2.3591]
[1719973450138,0.51065905,3391.7,3391.1,2.3591]
[1719973450324,0.66422588,3391.8,3391.1,2.3591]
[1719973450523,0.51066099,3391.7,3391.1,2.3591]
[1719973450699,0.66422588,3391.8,3391.1,2.3591]
[1719973451044,0.5106611,3391.7,3391.1,2.3591]
[1719973451342,0.66422588,3391.8,3391.1,2.3591]
[1719973451509,0.51066114,3391.7,3391.1,2.3591]
[1719973451853,5.8952588,3392.0,3391.4,0.00177]
[1719973452013,0.51065944,3391.9,3391.4,0.00177]
[1719973452243,0.4573588,3392.0,3391.4,0.00177]
[1719973452244,0.4573588,3392.0,3391.4,2.36067]
[1719973452561,0.51063436,3391.9,3391.4,2.36067]
[1719973452875,0.4573588,3392.0,3391.4,2.36067]
[1719973453057,0.51063012,3391.9,3391.4,2.36067]
[1719973453263,0.4573588,3392.0,3391.4,2.36067]
[1719973453431,0.51063612,3391.9,3391.4,3.10767]
[1719973453632,12.7738,3392.2,3391.4,3.10767]
[1719973453865,0.51062205,3392.1,3391.4,3.10767]
[1719973454175,7.48,3392.2,3391.6,0.747]
[1719973454343,0.51060932,3392.1,3391.6,0.747]
[1719973454527,7.48,3392.2,3391.6,0.747]
[1719973454734,0.51060757,3392.1,3391.6,0.747]
[1719973454935,7.48,3392.2,3391.6,0.747]
[1719973455265,0.51060672,3392.1,3391.6,0.747]
[1719973455427,7.48,3392.2,3391.6,0.747]
[1719973455632,0.5106033,3392.1,3391.6,3.10576]
[1719973455887,7.48,3392.2,3391.6,3.10576]
[1719973456042,9.6779626,3392.2,3391.6,3.10576]
[1719973456249,0.51060548,3392.1,3391.6,3.10576]
[1719973456451,9.6779626,3392.2,3391.6,3.10576]
[1719973456770,0.51060454,3392.1,3391.6,3.10576]
[1719973456974,9.6779626,3392.2,3391.6,3.10576]
[1719973457149,0.51060826,3392.1,3391.6,3.10576]
[1719973457358,7.48,3392.2,3391.6,3.10576]
[1719973457667,0.51060342,3392.1,3391.6,3.10576]
[1719973457876,7.48,3392.2,3391.6,3.10576]
[1719973458080,0.51059824,3392.1,3391.6,3.10576]
[1719973458290,7.48,3392.2,3391.6,3.10576]
[1719973458579,0.51060192,3392.1,3391.6,3.10576]
[1719973458789,7.48,3392.2,3391.6,3.10576]
[1719973459075,0.51060326,3392.1,3391.6,3.10576]
[1719973459245,5.5393,3392.4,3391.6,3.10576]
[1719973459246,4.4499536,3392.3,3391.6,3.10576]
[1719973459439,0.5106032,3392.2,3391.6,3.10576]
[1719973459655,4.4499536,3392.3,3391.6,3.10576]
[1719973459854,0.51060329,3392.1,3391.6,3.10576]
[1719973460202,2.34294896,3392.2,3391.6,3.10576]
[1719973460353,0.51060665,3392.1,3391.6,3.10576]
[1719973460548,2.34294896,3392.2,3391.6,3.10576]
[1719973460751,0.51060667,3392.1,3391.6,3.10576]
[1719973460953,2.34294896,3392.2,3391.6,3.10576]
[1719973461252,0.51060469,3392.1,3391.6,3.10576]
[1719973461449,2.34294896,3392.2,3391.6,3.10576]
[1719973461767,1.74382465,3392.1,3391.6,3.10576]
[1719973461969,0.51060921,3392.0,3391.4,0.00177]
[1719973462200,0.747,3391.8,3391.4,0.00177]
[1719973462407,0.92690692,3391.7,3391.4,0.00177]
[1719973468241,0.51066729,3391.6,3391.4,0.00177]
[1719973468411,0.92690692,3391.7,3391.4,0.00177]
[1719973468621,0.5106671,3391.6,3391.4,0.00177]
[1719973468817,10.61656,3391.5,3391.4,0.00177]
[1719973469001,12.8826405,3391.5,3391.4,0.00177]
[1719973469347,15.8826405,3391.5,3391.4,0.00177]
[1719973470107,24.7284405,3391.5,3391.4,0.00177]
[1719973471686,24.2177734,3391.5,3391.4,0.00177]
[1719973471984,24.72859247,3391.5,3391.4,0.00177]
[1719973472151,24.7285927,3391.5,3391.4,0.00177]
[1719973474629,24.2177734,3391.5,3391.4,0.00177]
[1719973474850,24.72859297,3391.5,3391.4,0.00177]
[1719973475192,24.72859264,3391.5,3391.4,0.00177]
[1719973477797,24.2177734,3391.5,3391.4,0.00177]
[1719973477961,24.72859298,3391.5,3391.4,0.00177]
[1719973480496,27.08742298,3391.5,3391.4,0.00177]
[1719973481056,27.08742521,3391.5,3391.4,0.00177]
[1719973483717,18.82969521,3391.5,3391.4,0.00177]
[1719973484026,19.57669521,3391.5,3391.4,0.00177]
[1719973484164,18.3188734,3391.5,3391.4,0.00177]
[1719973484368,18.82965023,3391.5,3391.4,0.00177]
[1719973484886,18.3188734,3391.5,3391.4,0.00177]
[1719973485206,16.47081645,3391.5,3391.4,0.00177]
[1719973485509,19.57664645,3391.5,3391.4,0.00177]
[1719973486768,2.359,3391.3,3391.0,5.053491]
[1719973486981,4.31668165,3391.3,3391.0,5.053491]
[1719973487180,3.0,3391.2,3391.0,5.053491]
[1719973489511,2.359,3391.3,3391.0,5.053491]
[1719973490111,3.0,3391.4,3391.0,5.053491]
[1719973490282,8.8458,3391.5,3391.0,5.053491]
[1719973492488,0.51072993,3391.4,3391.0,5.053491]
[1719973492685,8.8458,3391.5,3391.0,5.053491]
[1719973492921,0.51072995,3391.4,3391.0,5.053491]
[1719973493220,8.8458,3391.5,3391.0,5.053491]
[1719973493427,0.51072936,3391.4,3391.0,5.053491]
[1719973493630,8.8458,3391.5,3391.0,5.053491]
[1719973493791,0.51072956,3391.4,3391.0,5.053491]
[1719973493979,8.8458,3391.5,3391.0,5.053491]
[1719973494179,0.51072834,3391.4,3391.0,5.053491]
[1719973494434,8.8458,3391.5,3391.0,5.053491]
[1719973494729,0.51075248,3391.4,3391.0,5.053491]
[1719973495025,8.8458,3391.5,3391.0,5.053491]
[1719973495187,0.51072264,3391.4,3391.0,5.053491]
[1719973495391,8.8458,3391.5,3391.0,5.053491]
[1719973495586,0.51072264,3391.4,3391.0,5.053491]
[1719973495788,8.8458,3391.5,3391.0,5.053491]
[1719973496010,0.5107314,3391.4,3391.0,5.053491]
[1719973496216,0.5107314,3391.3,3391.0,5.053491]
[1719973496418,0.5107314,3391.4,3391.0,5.053491]
[1719973496597,8.8458,3391.5,3391.0,5.053491]
[1719973496803,0.51072808,3391.4,3391.0,5.053491]
[1719973497000,8.8458,3391.5,3391.0,5.053491]
[1719973497311,0.51072724,3391.4,3391.0,5.053491]
[1719973497502,0.51072724,3391.3,3391.0,5.053491]
[1719973497705,0.51072724,3391.3,3390.2,2.3597]
[1719973497706,0.747,3391.4,3390.5,5.5675]
[1719973497906,0.747,3391.1,3390.5,5.5675]
[1719973498113,0.51074844,3391.0,3390.5,5.5675]
[1719973498428,0.747,3390.9,3390.5,5.5675]
[1719973498594,0.747,3390.7,3390.5,5.5675]
[1719973498987,0.747,3390.9,3390.5,5.5675]
[1719973499189,0.51083038,3390.8,3390.5,5.5675]
[1719973499386,0.51083038,3390.7,3390.5,5.5675]
[1719973499627,0.51083038,3390.8,3390.5,5.5675]
[1719973499829,0.747,3390.9,3390.5,5.5675]
[1719973499830,1.193251,3390.9,3390.5,5.5675]
[1719973500132,0.51083095,3390.7,3390.5,5.5675]
[1719973511099,7.48,3391.2,3390.7,5.448]
[1719973511303,7.48,3391.2,3390.8,2.35931]
[1719973511304,8.8458,3391.1,3390.8,2.35931]
[1719973511528,8.8458,3391.1,3390.9,5.3134]
[1719973512207,8.8458,3391.1,3390.5,2.35953]
[1719973512413,0.51074895,3391.0,3390.6,5.1821]
[1719973512613,0.51074895,3390.9,3390.6,5.1821]
[1719973512918,0.51074895,3390.8,3390.6,5.1821]
[1719973513105,9.5928,3391.1,3390.6,5.1821]
[1719973513106,0.51074895,3391.0,3390.6,5.1821]
[1719973514099,0.51074895,3391.0,3390.1,5.1721]
[1719973514300,8.8458,3390.9,3390.2,0.827892]
[1719973514543,8.8458,3390.9,3390.2,3.187622]
[1719973514845,8.8458,3390.9,3390.3,2.35966]
[1719973514846,0.51080888,3390.8,3390.3,2.35966]
[1719973515035,8.8458,3390.9,3390.3,2.35966]
[1719973515337,0.5108009,3390.8,3390.3,3.1956252]
[1719973515631,8.8458,3390.9,3390.3,3.1956252]
[1719973515797,0.51080111,3390.8,3390.3,3.1956252]
[1719973516002,8.8458,3390.9,3390.3,3.1956252]
[1719973516223,0.51079934,3390.8,3390.3,3.1956252]
[1719973516421,8.8458,3390.9,3390.3,3.1956252]
[1719973516618,0.5107993,3390.8,3390.3,3.1956252]
[1719973516847,8.8458,3390.9,3390.3,3.1956252]
[1719973517277,0.51079987,3390.8,3390.3,3.1956252]
[1719973517428,8.8458,3390.9,3390.5,5.5265]
[1719973518645,8.8458,3390.9,3390.6,2.35945]
[1719973518847,8.8458,3390.9,3390.8,2.35932]
[1719973520039,8.8458,3390.9,3390.6,2.35945]
[1719973520241,8.8458,3390.9,3390.5,5.5265]
[1719973520242,8.8458,3390.9,3390.7,2.35939]
[1719973523421,8.8458,3390.9,3390.8,7.67482]
[1719973523658,8.8458,3390.9,3390.8,8.752941]
[1719973524063,8.8458,3390.9,3390.8,7.67482]
[1719973524256,8.8458,3390.9,3390.8,5.3155]
[1719973524538,8.8458,3390.9,3390.8,7.67482]
[1719973525772,8.8458,3390.9,3390.5,7.68113]
[1719973526667,8.8458,3390.9,3390.6,2.35945]
[1719973527179,8.8458,3390.9,3390.6,3.10645]
[1719973527486,8.8458,3390.9,3390.7,5.5439]
[1719973527654,8.8458,3390.9,3390.8,2.35932]
[1719973530745,8.8458,3390.9,3390.8,5.46564]
[1719973530946,8.8458,3390.9,3390.8,10.94654]
[1719973531155,8.8458,3390.9,3390.8,12.041194]
[1719973533049,8.8458,3390.9,3390.8,11.294194]
[1719973533252,8.8458,3390.9,3390.8,12.041194]
[1719973536090,8.8458,3390.9,3390.8,14.400514]
[1719973537670,8.8458,3390.9,3390.8,12.041194]
[1719973537873,8.8458,3390.9,3390.8,11.294194]
[1719973538077,8.8458,3390.9,3390.8,12.041194]
[1719973542407,8.8458,3390.9,3390.8,14.400514]
[1719973545392,8.59725723,3390.9,3390.8,14.400514]
[1719973546321,7.65014956,3390.9,3390.8,14.400514]
[1719973546829,7.48,3391.2,3391.1,4.71822]
[1719973547134,7.48,3391.2,3391.1,5.46522]
[1719973547309,7.48,3391.2,3391.1,6.9052294]
[1719973548430,7.48,3391.5,3391.4,2.3589]
[1719973552930,7.48,3391.5,3391.4,4.7178]
[1719973553923,7.48,3391.5,3391.4,5.4648]
[1719973554125,7.48,3391.5,3391.4,6.54327]
[1719973555048,7.48,3391.5,3391.4,8.90217]
[1719973555222,12.9032,3392.4,3391.5,2.35883]
[1719973555420,12.9032,3392.4,3391.8,0.747]
[1719973555615,12.9032,3392.4,3392.2,2.35834]
[1719973555821,5.4232,3392.4,3392.2,2.35834]
[1719973558619,5.7247,3392.7,3392.2,2.35834]
[1719973558931,5.83747,3392.6,3392.2,2.35834]
[1719973560826,0.51056421,3392.5,3392.3,2.35827]
[1719973561028,7.48,3392.9,3392.4,2.35821]
[1719973561286,0.51051195,3392.8,3392.7,2.35798]
[1719973561568,7.48,3392.9,3392.7,2.358]
[1719973562337,7.48,3392.9,3392.8,2.35793]
[1719973562622,7.48,3392.9,3392.7,2.358]
[1719973565362,7.48,3392.9,3392.5,2.35813]
[1719973565528,7.48,3392.9,3392.6,2.35806]
[1719973566172,5.6057,3393.2,3392.6,2.35806]
[1719973566380,3.0,3393.1,3392.6,2.35806]
[1719973568374,3.0833,3393.0,3392.2,2.35831]
[1719973568753,3.0833,3393.0,3392.3,2.35827]
[1719973569304,2.3363,3393.0,3392.4,2.35821]
[1719973570407,2.3363,3393.0,3392.5,2.35813]
[1719973572076,2.3363,3393.0,3392.4,2.35821]
[1719973573413,2.3363,3393.0,3392.5,2.35813]
[1719973577235,2.3363,3393.0,3392.6,2.35807]
[1719973578703,5.3316,3393.3,3392.7,2.35799]
[1719973578898,0.51047202,3393.2,3392.7,2.35799]
[1719973579102,0.51047202,3393.1,3392.7,2.35799]
[1719973579328,5.3316,3393.3,3392.7,2.35799]
[1719973579532,0.5104713,3393.2,3392.5,2.35814]
[1719973579699,6.80292326,3393.3,3392.6,2.35806]
[1719973579700,0.5104713,3393.1,3392.6,2.35806]
[1719973579899,0.5104713,3393.2,3392.6,2.35806]
[1719973580628,7.54992326,3393.3,3392.6,2.35806]
[1719973580809,0.51047861,3393.1,3392.6,2.35806]
[1719973581013,7.54992326,3393.3,3392.6,2.35806]
[1719973581328,0.5104818,3393.2,3392.6,2.35806]
[1719973581495,0.5104818,3393.1,3392.6,2.35806]
[1719973581686,0.5104818,3393.2,3392.6,2.35806]
[1719973582123,0.5104818,3393.2,3392.7,2.358]
[1719973584639,0.5104818,3393.2,3392.5,2.35812]
[1719973587065,6.0786,3393.3,3392.5,2.35812]
[1719973587066,0.51048897,3393.1,3392.5,2.35812]
[1719973587257,0.51048897,3393.0,3392.5,2.35812]
[1719973587578,0.51048923,3392.9,3392.5,2.35812]
[1719973587732,0.51048923,3392.8,3392.5,2.9883052]
[1719973587937,6.0786,3393.3,3392.5,2.9883052]
[1719973588273,0.51048385,3393.2,3392.5,2.35812]
[1719973588565,0.51048385,3393.1,3392.5,2.35812]
[1719973588872,0.51048385,3393.0,3392.5,2.35812]
[1719973589033,0.51048385,3392.9,3392.5,2.35812]
[1719973589233,0.51048385,3392.8,3392.6,2.35806]
[1719973589432,0.51047844,3392.7,3392.6,2.35806]
[1719973589670,0.510479,3392.7,3392.6,2.35806]
[1719973590043,0.51047969,3392.7,3392.6,2.35806]
[1719973590570,0.51047969,3392.7,3392.5,2.35814]
[1719973590863,6.0786,3393.3,3392.5,2.35814]
[1719973591072,0.51048431,3393.2,3392.5,2.35814]
[1719973593239,10.26355,3393.3,3392.5,2.35814]
[1719973593240,0.5104909,3393.1,3392.5,2.35814]
[1719973593441,0.5104909,3393.0,3392.5,2.35814]
[1719973593669,0.5104909,3392.9,3392.5,2.35814]
[1719973593873,0.5104909,3393.2,3392.5,2.35814]
[1719973596239,10.26355,3393.3,3392.5,2.35814]
[1719973596574,11.36259091,3393.2,3392.5,2.35814]
[1719973596738,3.51049091,3393.1,3392.5,2.35814]
[1719973596938,9.35249091,3393.0,3392.5,2.35814]
[1719973597161,0.51049091,3392.9,3392.5,2.35814]
[1719973599479,8.842,3393.0,3392.5,2.35814]
[1719973599786,0.51048855,3392.9,3392.5,2.35814]
[1719973599983,0.51048856,3392.8,3392.5,2.35814]
[1719973600186,0.51048856,3392.7,3392.5,2.35814]
[1719973600372,8.842,3393.0,3392.5,2.90448]
[1719973600373,0.51048856,3392.9,3392.5,2.90448]
[1719973600558,0.51048856,3392.8,3392.5,2.90448]
[1719973600749,0.51048856,3392.7,3392.6,2.2571]
[1719973601973,0.51048856,3392.7,3392.6,4.67411678]
[1719973602282,8.842,3393.0,3392.6,4.67411678]
[1719973602458,0.51045754,3392.9,3392.6,4.67411678]
[1719973602658,0.51045508,3392.8,3392.7,2.35798]
[1719973602858,8.842,3393.0,3392.7,3.13589668]
[1719973603100,0.51045471,3392.9,3392.7,3.13589668]
[1719973603396,0.51045471,3392.9,3392.7,3.19484062]
[1719973603586,0.51045471,3392.9,3392.7,0.83686062]
[1719973603759,0.51045471,3392.9,3392.2,2.4491]
[1719973603956,0.747,3392.6,3391.8,2.35862]
[1719973604264,9.35245471,3392.5,3391.8,2.35862]
[1719973604461,0.51045471,3392.4,3391.5,2.4491]
[1719973604675,0.51045471,3392.4,3391.5,6.143533]
[1719973604676,2.3763,3392.3,3391.5,6.143533]
[1719973604887,0.51045471,3392.2,3391.5,6.143533]
[1719973605287,0.51045471,3392.2,3391.6,2.35876]
[1719973605699,0.51060748,3392.1,3391.6,2.35876]
[1719973605863,2.3763,3392.3,3391.6,2.35876]
[1719973606062,0.51061003,3392.2,3391.6,3.2090073]
[1719973606261,0.51061003,3392.1,3391.6,3.2090073]
[1719973606567,2.3763,3392.3,3391.6,3.2090073]
[1719973606790,0.51060497,3392.2,3391.6,3.2090073]
[1719973606991,0.51060497,3392.1,3391.6,3.2090073]
[1719973607211,2.3763,3392.3,3391.6,3.2090073]
[1719973607375,0.51059965,3392.2,3391.6,3.2090073]
[1719973607557,2.3763,3392.3,3391.6,3.2090073]
[1719973607765,0.51060007,3392.2,3391.6,0.8502473]
[1719973607960,2.3763,3392.3,3391.6,0.8502473]
[1719973608265,0.51060465,3392.2,3391.6,0.8502473]
[1719973608605,2.3763,3392.3,3391.6,0.8502473]
[1719973608765,0.51061196,3392.2,3391.6,0.8502473]
[1719973608991,0.51061279,3392.1,3391.3,0.29325697]
[1719973609339,2.35841,3392.2,3391.3,0.29325697]
[1719973609340,2.35841,3392.2,3391.3,3.0]
[1719973609493,2.35841,3392.2,3391.5,0.747]
[1719973609494,0.51062841,3392.1,3391.5,0.747]
[1719973609694,2.35841,3392.2,3391.5,0.747]
[1719973609925,0.51062712,3392.1,3391.5,0.747]
[1719973610252,2.35841,3392.2,3391.5,0.747]
[1719973610733,2.35841,3392.2,3391.4,0.747]
[1719973611304,2.35841,3392.2,3391.4,3.0267]
[1719973611623,4.73461,3392.3,3391.4,3.0267]
[1719973611787,0.51062124,3392.2,3391.4,3.0267]
[1719973611988,2.35836,3392.2,3391.4,3.89402492]
[1719973612619,2.35836,3392.2,3391.4,3.14702492]
[1719973612801,0.51062856,3392.1,3391.5,0.747]
[1719973613001,2.35836,3392.2,3391.5,0.472254]